bitfinex/quotes_SOLUSD_20240708
["timestamp","ask_amount","ask_price","bid_price","bid_amount"]
[1720456464141,20.34,136.0,135.9,18.3953]
[1720456464537,20.34,136.0,135.91,7.3574]
[1720456464742,20.34,136.0,135.92,7.3572]
[1720456464940,20.34,136.0,135.91,7.3576]
[1720456465251,27.6929,136.0,135.91,7.3576]
[1720456465726,20.0,136.0,135.92,18.3928]
[1720456465929,23.97413731,136.04,135.93,122.18]
[1720456466134,20.0,136.03,135.95,7.3554]
[1720456466437,22.7734,136.04,135.95,7.3555]
[1720456466756,7.3518,136.02,135.93,18.3907]
[1720456466962,7.3515,136.03,135.93,25.7473]
[1720456467135,15.4222,136.04,135.9,218.3952]
[1720456467331,15.4222,136.04,135.9,240.5752]
[1720456467543,7.3524,136.01,135.91,22.18]
[1720456467875,7.522,136.02,135.92,7.3572]
[1720456468156,0.17,136.0,135.91,29.5377]
[1720456468736,0.17,136.0,135.92,7.357]
[1720456468951,20.0,136.01,135.94,7.356]
[1720456469270,20.0,136.03,135.95,7.3554]
[1720456469569,20.0,136.03,135.94,18.3898]
[1720456469570,15.4222,136.04,135.96,7.355]
[1720456470061,15.4222,136.04,135.97,7.3544]
[1720456470365,15.4222,136.04,135.96,25.7425]
[1720456470658,15.4222,136.04,135.92,122.18]
[1720456470832,15.4222,136.04,135.93,7.3562]
[1720456470833,7.3519,136.02,135.93,7.3562]
[1720456471034,7.3524,136.01,135.92,125.7496]
[1720456471344,7.352,136.02,135.93,7.3567]
[1720456471676,7.352,136.02,135.93,29.5367]
[1720456472454,20.0,136.01,135.93,29.5367]
[1720456472949,20.0,136.01,135.93,22.18]
[1720456473274,7.3532,136.0,135.91,29.5376]
[1720456473578,7.3532,136.0,135.91,7.3577]
[1720456473771,7.3525,136.01,135.92,107.3571]
[1720456473962,7.352,136.02,135.93,7.3566]
[1720456474149,20.0,136.01,135.93,7.3566]
[1720456474346,20.0,136.01,135.93,129.5366]
[1720456474581,20.0,136.01,135.94,100.0]
[1720456474754,20.0,136.02,135.94,100.0]
[1720456474957,20.0,136.02,135.94,107.3559]
[1720456475409,20.0,136.02,135.94,107.3558]
[1720456475574,20.0,136.02,135.92,122.18]
[1720456475762,20.17,136.03,135.92,107.3572]
[1720456475960,20.17,136.03,135.9,18.3947]
[1720456475961,0.17,136.02,135.9,118.3947]
[1720456476165,7.3538,135.99,135.9,118.3947]
[1720456476378,7.3538,135.99,135.9,125.753]
[1720456476690,0.17,136.02,135.89,100.0]
[1720456476691,0.17,136.02,135.92,140.573]
[1720456476857,7.3519,136.02,135.93,29.5367]
[1720456477057,20.0,136.01,135.93,29.5367]
[1720456477456,20.0,136.01,135.94,100.0]
[1720456477670,20.0,136.02,135.94,107.3561]
[1720456477980,15.4222,136.04,135.97,29.5342]
[1720456478198,15.4222,136.04,135.99,7.3533]
[1720456478865,15.2351,136.09,136.0,147.9147]
[1720456479081,22.5832,136.09,136.0,147.9147]
[1720456479480,7.3488,136.08,136.0,122.18]
[1720456480358,15.2351,136.09,136.02,100.0]
[1720456480557,15.2351,136.09,136.02,129.5314]
[1720456480758,15.2351,136.09,136.03,29.5313]
[1720456480960,21.75330643,136.15,136.06,7.3494]
[1720456481163,15.4077,136.16,136.11,100.0]
[1720456481390,6.2393,136.19,136.12,22.18]
[1720456481696,15.5077,136.21,136.15,100.0]
[1720456481878,15.5077,136.21,136.13,100.0]
[1720456482254,15.5077,136.21,136.14,25.7087]
[1720456482455,15.5077,136.21,136.15,100.0]
[1720456482664,7.3394,136.25,136.17,100.0]
[1720456482915,7.3394,136.25,136.18,45.0]
[1720456483098,15.5077,136.26,136.18,45.0]
[1720456483391,22.8467,136.26,136.18,45.0]
[1720456483774,7.3395,136.25,136.18,45.0]
[1720456483979,22.8466,136.26,136.18,45.0]
[1720456484280,15.5077,136.26,136.18,45.0]
[1720456484696,20.0,136.25,136.18,45.0]
[1720456484900,15.5077,136.26,136.18,45.0]
[1720456485103,7.3401,136.24,136.18,45.0]
[1720456485391,15.5077,136.26,136.18,45.0]
[1720456485392,7.3405,136.23,136.18,45.0]
[1720456485604,7.342,136.21,136.18,45.0]
[1720456485767,7.3411,136.22,136.18,45.0]
[1720456486290,7.59422009,136.23,136.18,45.0]
[1720456486462,20.0,136.22,136.18,45.0]
[1720456487404,27.3412,136.22,136.18,45.0]
[1720456487595,7.3422,136.2,136.11,100.0]
[1720456487912,0.17,136.21,136.09,100.0]
[1720456488087,0.34,136.21,136.09,100.0]
[1720456488286,7.3438,136.17,136.09,100.0]
[1720456488603,7.3433,136.18,136.09,100.0]
[1720456488809,15.3702,136.16,136.06,7.3495]
[1720456488998,15.3702,136.16,136.07,25.721]
[1720456489182,15.3702,136.16,136.07,147.901]
[1720456489378,15.3702,136.16,136.09,100.0]
[1720456489799,15.3702,136.16,136.09,129.5278]
[1720456490001,15.3702,136.16,136.09,122.18]
[1720456490200,22.1511,136.21,136.11,140.5465]
[1720456490434,27.3421,136.2,136.11,147.8933]
[1720456490987,20.0,136.2,136.11,147.8933]
[1720456491186,27.3423,136.2,136.11,140.5465]
[1720456491407,7.3427,136.19,136.11,122.18]
[1720456491717,27.3422,136.2,136.11,122.18]
[1720456491917,27.3422,136.2,136.11,129.5269]
[1720456491918,20.0,136.2,136.11,129.5269]
[1720456492418,27.3422,136.2,136.11,129.5269]
[1720456492588,7.3427,136.19,136.11,122.18]
[1720456492791,27.3423,136.2,136.11,122.18]
[1720456493028,20.0,136.2,136.11,129.5266]
[1720456494234,20.0,136.2,136.11,122.18]
[1720456494444,20.0,136.2,136.11,100.0]
[1720456494649,7.3449,136.15,136.07,100.0]
[1720456494838,7.3442,136.17,136.07,107.3489]
[1720456495149,0.17,136.19,136.06,25.7232]
[1720456495439,7.3433,136.18,136.08,47.8995]
[1720456495623,0.34,136.19,136.08,47.8995]
[1720456495933,7.3434,136.18,136.08,47.8995]
[1720456496630,7.3438,136.17,136.08,47.8995]
[1720456496825,27.3438,136.17,136.08,47.8995]
[1720456497030,20.0,136.2,136.11,100.0]
[1720456497212,27.3425,136.2,136.11,122.18]
[1720456497419,35.65039537,136.21,136.12,29.5259]
[1720456497731,28.05257706,136.21,136.13,129.5258]
[1720456498318,35.39417706,136.21,136.13,122.18]
[1720456499048,28.05257706,136.21,136.11,122.35]
[1720456499246,28.05257706,136.21,136.13,100.0]
[1720456499247,35.39427706,136.21,136.13,100.0]
[1720456499543,28.05257706,136.21,136.13,100.0]
[1720456499714,28.05257706,136.21,136.12,29.526]
[1720456499715,7.3426,136.19,136.11,118.5362]
[1720456499919,7.3426,136.19,136.11,140.7162]
[1720456500119,22.1511,136.21,136.11,140.5462]
[1720456500323,29.4928,136.21,136.12,29.526]
[1720456500636,15.6391,136.21,136.13,122.18]
[1720456501020,22.9809,136.21,136.13,122.18]
[1720456501233,15.6391,136.21,136.13,122.18]
[1720456501547,7.59689135,136.24,136.18,100.0]
[1720456501755,15.2116,136.25,136.18,122.18]
[1720456502952,20.0,136.24,136.18,122.18]
[1720456503147,22.5512,136.25,136.16,122.18]
[1720456503665,7.59588788,136.27,136.19,122.18]
[1720456504154,7.59588788,136.27,136.19,129.5222]
[1720456504547,7.59588788,136.27,136.2,40.5345]
[1720456504735,0.04365414,136.28,136.2,22.18]
[1720456505054,0.04365414,136.28,136.21,122.18]
[1720456505780,0.04365414,136.28,136.17,100.0]
[1720456506126,7.3384,136.27,136.19,100.0]
[1720456506467,20.0,136.26,136.21,100.0]
[1720456506625,7.3399,136.25,136.16,100.0]
[1720456506833,20.0,136.24,136.18,100.0]
[1720456507065,20.0,136.24,136.18,122.18]
[1720456507233,20.0,136.24,136.18,129.5232]
[1720456507566,20.0,136.27,136.2,100.0]
[1720456507931,20.0,136.27,136.18,129.5232]
[1720456508132,20.0,136.27,136.19,29.5225]
[1720456508368,20.0,136.27,136.18,100.0]
[1720456508546,18.3488,136.25,136.11,100.0]
[1720456508728,7.3434,136.18,136.1,6.3546]
[1720456508930,20.0,136.17,136.06,6.0469]
[1720456509153,20.0,136.17,136.02,131.778]
[1720456509154,7.347,136.11,136.02,131.778]
[1720456509355,7.347,136.11,135.88,385.5]
[1720456509356,6.0711,136.11,135.98,6.0469]
[1720456509529,20.34,136.1,135.97,100.0]
[1720456509939,20.34,136.1,135.96,118.3872]
[1720456509940,20.0,136.1,135.99,107.3532]
[1720456510354,7.3485,136.09,136.0,22.18]
[1720456510553,20.0,136.1,136.0,22.18]
[1720456510554,20.0,136.08,136.0,22.18]
[1720456510738,7.3487,136.08,135.99,100.0]
[1720456510936,20.0,136.07,135.99,100.0]
[1720456511172,20.0,136.1,135.99,100.0]
[1720456511338,7.3481,136.09,135.99,122.18]
[1720456511541,20.0,136.08,135.99,129.533]
[1720456511770,7.5183,136.09,135.99,100.0]
[1720456511956,27.349,136.08,135.98,7.3539]
[1720456512143,7.5193,136.07,135.97,125.7403]
[1720456512470,27.3493,136.07,135.97,125.7403]
[1720456512637,7.3486,136.08,135.98,7.354]
[1720456512837,20.0,136.06,135.99,7.3534]
[1720456513043,20.0,136.06,136.0,29.5329]
[1720456513242,0.17,136.1,136.01,122.18]
[1720456513445,6.0661,136.16,136.07,7.3489]
[1720456513644,12.05008427,136.16,136.04,100.0]
[1720456513856,7.3463,136.13,136.04,100.0]
[1720456514059,7.3463,136.13,136.03,47.9093]
[1720456514264,12.05008427,136.16,136.03,47.9093]
[1720456514568,12.05008427,136.16,136.05,122.18]
[1720456514768,32.52,136.2,136.07,118.3721]
[1720456514953,20.75898905,136.22,136.07,18.3721]
[1720456515267,7.3444,136.16,136.07,18.3721]
[1720456515643,7.60742687,136.17,136.08,7.3485]
[1720456515956,7.3443,136.16,136.07,25.7208]
[1720456516158,7.60742687,136.17,136.06,7.3496]
[1720456516375,20.0,136.16,136.04,18.3763]
[1720456516542,7.3476,136.1,136.01,24.8094]
[1720456516745,7.3488,136.08,135.98,25.738]
[1720456516945,20.0,136.07,136.0,100.0]
[1720456517150,20.0,136.09,136.01,22.18]
[1720456517455,20.0,136.09,136.02,125.7309]
[1720456517657,27.3471,136.11,136.02,25.7309]
[1720456517857,20.0,136.11,136.0,100.0]
[1720456518074,20.0,136.11,136.01,40.5606]
[1720456518365,20.0,136.11,136.05,7.3501]
[1720456518572,20.0,136.13,136.05,25.7252]
[1720456518761,20.0,136.13,136.03,7.3508]
[1720456518964,20.0,136.15,136.02,18.3787]
[1720456519149,7.3474,136.11,136.02,25.7304]
[1720456519350,20.0,136.1,136.03,7.3511]
[1720456519953,27.5167,136.12,136.02,40.5587]
[1720456520159,27.5167,136.12,136.02,47.9104]
[1720456520375,7.3487,136.08,135.99,18.3826]
[1720456520548,20.0,136.07,136.01,7.3523]
[1720456520875,20.0,136.07,136.02,7.3517]
[1720456521059,20.0,136.07,136.01,25.7322]
[1720456521248,20.0,136.09,136.02,7.3515]
[1720456521575,20.0,136.1,136.03,7.3512]
[1720456521754,20.0,136.11,136.06,7.3493]
[1720456521963,15.0769,136.14,136.08,7.3482]
[1720456522148,15.0769,136.14,136.07,18.3726]
[1720456522676,15.0769,136.14,136.09,7.3479]
[1720456522879,15.0769,136.14,136.07,40.5526]
[1720456523062,15.0769,136.14,136.08,7.3485]
[1720456523376,20.0,136.13,136.09,7.348]
[1720456523569,20.0,136.13,136.07,140.5526]
[1720456523768,20.0,136.13,136.05,122.18]
[1720456523967,20.0,136.13,136.07,7.3487]
[1720456524276,20.0,136.13,136.07,29.5287]
[1720456524456,20.0,136.13,136.06,25.7236]
[1720456524784,28.58434905,136.18,136.09,22.18]
[1720456524949,28.58434905,136.18,136.08,118.3713]
[1720456524950,20.0,136.17,136.05,24.7194]
[1720456525147,20.0,136.17,136.06,7.3493]
[1720456525148,7.3448,136.16,136.06,7.3493]
[1720456525347,7.3454,136.14,136.06,100.0]
[1720456525578,7.68801282,136.17,136.03,200.0]
[1720456525749,7.68801282,136.17,136.05,22.18]
[1720456525957,0.17,136.16,136.06,22.18]
[1720456526151,7.68801282,136.17,136.07,122.18]
[1720456526356,28.41036515,136.18,136.09,7.3479]
[1720456526665,20.0,136.17,136.09,7.3479]
[1720456527050,20.0,136.17,136.1,7.3473]
[1720456527876,20.89676515,136.18,136.1,7.3473]
[1720456528078,20.89676515,136.18,136.11,7.3469]
[1720456528079,15.0769,136.18,136.11,7.3469]
[1720456528588,15.0769,136.18,136.12,40.5457]
[1720456528763,15.0769,136.18,136.11,7.3466]
[1720456529094,15.0769,136.18,136.1,22.18]
[1720456529258,15.0769,136.18,136.1,29.5273]
[1720456529455,22.4201,136.18,136.09,25.7172]
[1720456529758,20.0,136.17,136.09,140.5493]
[1720456529973,20.0,136.17,136.11,18.3671]
[1720456530170,20.0,136.2,136.11,18.3671]
[1720456530491,7.68633279,136.22,136.13,18.3644]
[1720456530782,31.50523263,136.23,136.13,125.7101]
[1720456531286,31.50503263,136.23,136.14,29.5253]
[1720456531810,20.0,136.22,136.14,29.5253]
[1720456532204,20.0,136.22,136.15,7.3447]
[1720456532388,20.0,136.22,136.14,29.5252]
[1720456532587,27.3411,136.22,136.13,118.3644]
[1720456532784,0.17,136.21,136.11,100.0]
[1720456533191,0.17,136.21,136.07,100.0]
[1720456533406,7.3449,136.15,136.06,7.3493]
[1720456533591,27.3454,136.14,136.05,25.7244]
[1720456533918,36.1571,136.14,136.05,118.3743]
[1720456534115,16.1571,136.19,136.15,7.3444]
[1720456534333,20.0,136.18,136.12,18.3661]
[1720456534491,20.0,136.18,136.09,100.0]
[1720456534691,20.0,136.18,136.12,7.3462]
[1720456534989,16.5212,136.24,136.15,122.18]
[1720456535318,16.5212,136.24,136.13,100.0]
[1720456535319,23.8613,136.24,136.13,100.0]
[1720456535488,7.3407,136.23,136.14,25.708]
[1720456535687,16.5212,136.24,136.12,6.3435]
[1720456535688,7.3414,136.22,136.12,7.3459]
[1720456535905,16.5212,136.24,136.08,100.0]
[1720456536122,61.3981,136.21,136.07,7.3491]
[1720456536312,6.0487,136.12,136.03,7.3509]
[1720456536501,20.17,136.11,135.99,18.3826]
[1720456536702,0.17,136.09,136.0,7.3527]
[1720456536906,0.34,136.09,136.01,7.3523]
[1720456537114,20.34,136.09,136.0,7.3527]
[1720456537294,20.0,136.11,136.04,7.3507]
[1720456537718,20.0,136.11,136.05,107.3501]
[1720456538022,20.0,136.11,136.05,7.3501]
[1720456538219,20.0,136.11,136.06,7.3495]
[1720456539028,20.0,136.11,136.05,25.7251]
[1720456539331,15.5994,136.13,136.07,40.5525]
[1720456539502,15.5994,136.13,136.08,7.3484]
[1720456539503,20.0,136.12,136.08,7.3484]
[1720456539697,20.0,136.12,136.06,107.3493]
[1720456540019,20.0,136.12,136.06,147.9032]
[1720456540425,20.0,136.12,136.07,7.349]
[1720456540594,15.5994,136.13,136.06,118.3737]
[1720456540790,15.5994,136.13,136.07,29.529]
[1720456541416,13.6415,136.17,136.05,0.17]
[1720456541417,6.2974,136.17,136.1,7.3475]
[1720456541922,6.2974,136.17,136.11,7.3468]
[1720456542128,16.0691,136.18,136.14,7.3449]
[1720456542298,16.0691,136.18,136.13,7.3457]
[1720456542900,16.0691,136.18,136.11,22.18]
[1720456543525,16.0691,136.18,136.11,29.5267]
[1720456543910,16.0691,136.18,136.12,7.3462]
[1720456544111,16.0691,136.18,136.13,7.3457]
[1720456544317,16.0691,136.18,136.08,140.5506]
[1720456544520,23.4128,136.18,136.08,147.8989]
[1720456544723,20.0,136.17,136.09,7.348]
[1720456544906,20.0,136.17,136.09,22.18]
[1720456545106,20.0,136.17,136.11,129.5268]
[1720456545917,16.0691,136.18,136.12,7.3464]
[1720456546835,16.0691,136.18,136.13,100.0]
[1720456547007,16.0691,136.18,136.12,22.18]
[1720456547206,26.3953,136.17,136.05,100.0]
[1720456547431,26.3953,136.17,136.03,100.0]
[1720456547432,0.17,136.16,136.03,100.0]
[1720456547735,7.3485,136.09,136.0,125.7342]
[1720456547903,0.17,136.07,135.97,18.3853]
[1720456548110,7.3502,136.05,135.96,7.3549]
[1720456548326,20.0,136.04,135.98,122.18]
[1720456548530,20.0,136.04,135.97,7.3541]
[1720456548908,20.17,136.06,135.97,7.3541]
[1720456549105,20.17,136.06,135.98,7.3538]
[1720456549401,20.0,136.06,136.0,18.3819]
[1720456549619,22.1297,136.08,136.0,125.7347]
[1720456549620,20.0,136.07,136.0,125.7347]
[1720456549819,20.0,136.07,136.0,25.7347]
[1720456550331,20.0,136.07,136.01,7.3522]
[1720456550627,20.0,136.07,135.99,7.3533]
[1720456550931,20.0,136.07,135.97,118.3857]
[1720456551120,20.0,136.07,135.99,107.353]
[1720456551321,20.0,136.07,136.0,29.5329]
[1720456551623,20.0,136.07,136.01,122.18]
[1720456551818,20.0,136.07,136.02,7.3514]
[1720456552906,20.0,136.07,136.02,7.3518]
[1720456554332,20.0,136.07,136.03,7.3512]
[1720456554529,0.17,136.06,135.93,36.7817]
[1720456554745,0.17,136.06,135.91,100.0]
[1720456554746,0.34,136.06,135.95,100.0]
[1720456554913,7.352,136.02,135.94,18.3895]
[1720456555104,7.352,136.02,135.92,100.0]
[1720456555105,0.17,136.04,135.92,100.0]
[1720456555407,0.17,136.0,135.88,18.3985]
[1720456555619,38.7229,136.0,135.85,100.0]
[1720456555820,7.5241,135.98,135.88,7.3594]
[1720456556024,20.0,135.97,135.89,7.3588]
[1720456556430,20.0,135.97,135.88,29.5392]
[1720456556608,20.0,135.98,135.89,40.5767]
[1720456556813,20.0,135.98,135.92,7.357]
[1720456557035,20.0,136.0,135.92,7.357]
[1720456558616,20.0,136.0,135.94,7.3561]
[1720456559130,16.2236,136.01,135.93,125.7478]
[1720456559313,16.2236,136.01,135.94,7.3557]
[1720456559640,16.2236,136.01,135.93,125.7478]
[1720456559814,16.2236,136.01,135.94,7.3561]
[1720456560016,16.2236,136.01,135.95,140.5687]
[1720456560228,16.2236,136.01,135.95,18.3887]
[1720456560535,16.2236,136.01,135.95,125.7439]
[1720456561037,16.2236,136.01,135.96,7.3546]
[1720456561248,16.2236,136.01,135.97,7.3545]
[1720456561416,7.69481068,136.07,135.97,7.3545]
[1720456561417,7.69481068,136.07,135.97,140.566]
[1720456561615,15.2954,136.08,136.0,7.3527]
[1720456562323,15.2954,136.08,136.0,7.3529]
[1720456562528,15.2954,136.08,136.01,18.3805]
[1720456562830,15.2954,136.08,136.01,40.5605]
[1720456563041,15.2954,136.08,136.04,7.3503]
[1720456563231,15.2954,136.08,136.03,18.3778]
[1720456563413,15.2954,136.08,136.0,18.3812]
[1720456563614,15.2954,136.08,136.0,25.7339]
[1720456563916,15.2954,136.08,136.01,100.0]
[1720456564130,15.2954,136.08,136.02,7.3514]
[1720456564621,20.0,136.07,136.02,7.3514]
[1720456564821,20.0,136.07,136.01,129.5322]
[1720456565025,20.0,136.07,136.02,7.3517]
[1720456566556,30.05298453,136.14,136.05,122.18]
[1720456566863,22.3625,136.14,136.08,7.3485]
[1720456567962,16.2415,136.14,136.09,122.18]
[1720456568180,13.80900868,136.18,136.11,122.18]
[1720456568338,6.121,136.18,136.13,7.3457]
[1720456568539,6.121,136.18,136.12,7.346]
[1720456568739,16.2415,136.19,136.13,100.0]
[1720456568955,6.121,136.22,136.16,18.3595]
[1720456569559,6.121,136.22,136.15,7.3446]
[1720456570244,20.0,136.21,136.13,140.5437]
[1720456570461,20.0,136.21,136.14,29.5249]
[1720456570664,6.121,136.22,136.15,7.3447]
[1720456571074,6.121,136.22,136.14,7.3452]
[1720456571272,6.121,136.22,136.15,7.3448]
[1720456571455,6.121,136.22,136.13,18.3637]
[1720456571649,7.342,136.21,136.11,100.0]
[1720456571866,6.121,136.22,136.13,7.3458]
[1720456572175,6.121,136.22,136.15,7.3447]
[1720456572375,20.17,136.21,136.11,100.0]
[1720456572672,20.0,136.21,136.11,100.0]
[1720456572879,20.0,136.21,136.14,7.345]
[1720456573181,20.0,136.21,136.13,25.7097]
[1720456573346,20.0,136.21,136.11,100.0]
[1720456573663,20.0,136.21,136.12,7.346]
[1720456573851,20.0,136.21,136.12,25.7117]
[1720456574356,27.3416,136.21,136.12,25.7117]
[1720456574676,27.3416,136.21,136.09,18.3689]
[1720456574677,0.17,136.2,136.09,18.3689]
[1720456574979,7.3428,136.19,136.1,7.3473]
[1720456575186,20.17,136.18,136.09,25.7166]
[1720456575479,20.0,136.18,136.1,7.3473]
[1720456575653,20.0,136.18,136.09,25.7169]
[1720456575849,7.3454,136.14,136.05,18.3747]
[1720456576158,0.17,136.15,136.03,7.3511]
[1720456576352,7.3465,136.12,136.03,25.7289]
[1720456576556,20.0,136.11,136.03,25.7289]
[1720456576863,20.0,136.13,136.05,7.3498]
[1720456577880,27.346,136.13,136.04,29.4405]
[1720456578079,20.0,136.13,136.05,7.3501]
[1720456578286,27.5152,136.15,136.06,7.3495]
[1720456578455,7.3453,136.14,136.05,25.7251]
[1720456578781,20.0,136.13,136.05,25.7251]
[1720456578995,20.0,136.13,136.06,7.3495]
[1720456579283,20.0,136.14,136.06,7.3495]
[1720456579488,27.3454,136.14,136.05,147.8151]
[1720456579787,20.0,136.14,136.06,22.09]
[1720456580084,6.1304,136.16,136.09,100.0]
[1720456580295,13.7924,136.2,136.11,7.3469]
[1720456580633,6.4499,136.2,136.13,7.3458]
[1720456581249,15.02575432,136.23,136.14,7.3453]
[1720456581504,7.3407,136.23,136.14,7.3453]
[1720456581663,7.3407,136.23,136.14,29.4353]
[1720456582593,16.4669,136.24,136.11,100.0]
[1720456582800,16.4669,136.24,136.12,0.17]
[1720456582958,7.3407,136.23,136.13,107.3454]
[1720456583454,7.3421,136.21,136.12,25.7117]
[1720456583675,7.3412,136.22,136.12,47.8017]
[1720456583999,27.3417,136.21,136.12,18.3657]
[1720456584159,20.0,136.21,136.13,7.3455]
[1720456584593,20.17,136.22,136.13,7.3455]
[1720456584968,20.17,136.22,136.14,7.3453]
[1720456585675,7.3417,136.21,136.12,47.8021]
[1720456585982,20.0,136.2,136.13,122.09]
[1720456586563,20.0,136.23,136.13,122.09]
[1720456586960,20.0,136.23,136.15,7.3447]
[1720456589811,20.0,136.23,136.14,25.7083]
[1720456589812,27.3406,136.23,136.14,25.7083]
[1720456590108,20.0,136.23,136.15,7.3448]
[1720456590911,27.3405,136.23,136.14,25.7082]
[1720456591114,20.0,136.23,136.15,7.3448]
[1720456592309,16.4669,136.24,136.18,29.433]
[1720456592511,16.4669,136.24,136.19,107.3426]
[1720456592816,7.38145414,136.28,136.19,107.3423]
[1720456593793,7.38145414,136.28,136.2,7.342]
[1720456594100,0.21365414,136.28,136.21,0.51525929]
[1720456594605,7.55155414,136.28,136.21,0.51525929]
[1720456594984,0.04365414,136.28,136.21,0.51525929]
[1720456595309,20.04365414,136.28,136.21,0.51525929]
[1720456595512,27.38145414,136.28,136.21,0.51525929]
[1720456595820,0.34,136.27,136.18,18.3568]
[1720456596011,7.6784,136.27,136.18,25.6999]
[1720456596189,20.0,136.26,136.19,7.3426]
[1720456596710,27.38165414,136.28,136.19,7.3426]
[1720456597010,0.17,136.27,136.14,100.0]
[1720456597321,0.17,136.27,136.11,36.7329]
[1720456597322,7.3417,136.21,136.11,31.9517]
[1720456597486,7.3431,136.19,136.11,6.2378]
[1720456597689,20.0,136.18,136.12,7.3461]
[1720456598003,20.0,136.2,136.11,13.5847]
[1720456598184,20.0,136.2,136.12,7.3463]
[1720456598380,20.17,136.21,136.12,7.3463]
[1720456598891,20.17,136.21,136.15,7.3444]
[1720456598892,20.0,136.21,136.15,7.3444]
[1720456599115,0.17,136.26,136.16,18.3597]
[1720456599283,0.17,136.26,136.15,122.09]
[1720456599608,7.38155414,136.28,136.18,25.7005]
[1720456599818,7.3385,136.27,136.18,25.7005]
[1720456600192,7.3385,136.27,136.18,18.3574]
[1720456600387,7.3391,136.26,136.16,7.3441]
[1720456600821,20.0,136.25,136.17,140.4486]
[1720456601018,20.21365414,136.28,136.19,7.3425]
[1720456601208,20.04365414,136.28,136.2,18.3552]
[1720456601389,20.04365414,136.28,136.2,25.6971]
[1720456602192,20.04365414,136.28,136.17,140.4487]
[1720456602511,27.38185414,136.28,136.18,7.343]
[1720456602919,7.3385,136.27,136.17,140.4487]
[1720456603087,27.339,136.26,136.17,40.4487]
[1720456603293,20.0,136.25,136.18,29.4328]
[1720456603502,20.04365414,136.28,136.19,129.4322]
[1720456603716,20.04365414,136.28,136.19,140.4462]
[1720456604018,20.04365414,136.28,136.19,47.7887]
[1720456604194,7.3388,136.27,136.17,129.4336]
[1720456604395,20.0,136.26,136.16,18.3605]
[1720456604591,38.38905414,136.28,136.15,7.3447]
[1720456604804,7.3395,136.25,136.16,7.3442]
[1720456605012,20.0,136.24,136.16,7.3442]
[1720456605316,20.0,136.24,136.15,140.4516]
[1720456606015,0.17,136.23,136.13,100.0]
[1720456606199,7.3412,136.22,136.12,40.4552]
[1720456606395,20.0,136.21,136.13,7.3455]
[1720456606724,20.0,136.21,136.14,7.3453]
[1720456606891,20.0,136.22,136.14,7.3453]
[1720456607220,15.5083,136.21,136.12,18.3652]
[1720456607399,27.3422,136.2,136.11,7.3465]
[1720456607590,27.3422,136.2,136.1,7.3474]
[1720456607591,7.3427,136.19,136.1,7.3474]
[1720456607802,20.0,136.18,136.1,7.3474]